fUST/lending_fUST_20250713
["ID","MTS","AMOUNT","RATE_DAILY","PERIOD"]
[371673751,1752382242948,-460.0,0.00018469,2]
[371673753,1752382242957,-460.0,0.00018469,2]
[371673755,1752382242966,-460.0,0.0001847,2]
[371673758,1752382242977,-591.7002241,0.0001847,2]
[371673760,1752382242987,-460.0,0.0001847,2]
[371673761,1752382242996,-460.0,0.0001847,2]
[371673763,1752382243006,-460.0,0.0001847,2]
[371673766,1752382243015,-500.0,0.0001847,2]
[371673768,1752382243025,-460.0,0.0001847,2]
[371673770,1752382243034,-500.0,0.0001847,2]
[371673772,1752382243044,-462.62464797,0.00018471,2]
[371673773,1752382243053,-460.0,0.00018471,2]
[371673775,1752382243063,-460.0,0.00018471,2]
[371673777,1752382243072,-460.0,0.00018471,2]
[371673779,1752382243082,-500.0,0.00018471,2]
[371673781,1752382243091,-460.0,0.00018471,2]
[371673783,1752382243101,-460.0,0.00018471,2]
[371673785,1752382243110,-431.33258806,0.00018471,2]
[371673787,1752382243120,-151.0,0.00018472,2]
[371673789,1752382243129,-214.421492,0.00018472,2]
[371673791,1752382243138,-500.0,0.00018473,2]
[371673793,1752382243148,-1677.48536198,0.00018621,2]
[371673795,1752382243158,-500.0,0.00018644,2]
[371673797,1752382243167,-500.0,0.00018644,2]
[371673799,1752382243177,-500.0,0.00018644,2]
[371673801,1752382243186,-500.0,0.00018644,2]
[371673803,1752382243196,-26094.78190824,0.00018645,2]
[371673806,1752382243208,-15777.30110422,0.00018645,2]
[371673808,1752382243217,-500.0,0.0001872,2]
[371673810,1752382243227,-1000.0,0.00018721,2]
[371673812,1752382243237,-460.0,0.00018741,2]
[371673814,1752382243246,-1426.51,0.00018741,2]
[371673816,1752382243256,-460.0,0.00018741,2]
[371673818,1752382243266,-460.0,0.00018741,2]
[371673820,1752382243275,-821.59,0.00018741,2]
[371673822,1752382243284,-460.0,0.00018741,2]
[371673824,1752382243294,-480.9486705,0.00018742,2]
[371673825,1752382243304,-460.0,0.00018742,2]
[371673827,1752382243314,-460.0,0.00018742,2]
[371673829,1752382243323,-500.0,0.00018742,2]
[371673832,1752382243333,-460.0,0.00018742,2]
[371673833,1752382243343,-256.84548912,0.00018742,2]
[371673835,1752382243352,-427.49255121,0.00018742,2]
[371673838,1752382243362,-460.0,0.00018742,2]
[371673840,1752382243371,-155.1616619,0.00018742,2]
[371673842,1752382243383,-460.0,0.00018742,2]
[371673844,1752382243393,-460.0,0.00018742,2]
[371673846,1752382243402,-460.0,0.00018742,2]
[371673848,1752382243412,-732.25,0.00018742,2]
[371673850,1752382243421,-468.77452312,0.00018742,2]
[371673852,1752382243431,-746.82,0.00018742,2]
[371673854,1752382243442,-460.0,0.00018742,2]
[371673856,1752382243451,-760.35,0.00018742,2]
[371673858,1752382243461,-460.0,0.00018742,2]
[371673860,1752382243471,-460.0,0.00018742,2]
[371673862,1752382243480,-460.0,0.00018742,2]
[371673864,1752382243490,-460.0,0.00018742,2]
[371673866,1752382243500,-480.08303695,0.00018742,2]
[371673868,1752382243510,-460.0,0.00018742,2]
[371673870,1752382243519,-465.8410657,0.00018742,2]
[371673872,1752382243528,-460.0,0.00018742,2]
[371673874,1752382243537,-460.0,0.00018742,2]
[371673876,1752382243547,-460.0,0.00018742,2]
[371673878,1752382243556,-460.0,0.00018742,2]
[371673880,1752382243566,-460.0,0.00018742,2]
[371673882,1752382243575,-1141.24,0.00018742,2]
[371673884,1752382243586,-186.8,0.00018742,2]
[371673886,1752382243595,-500.0,0.00018742,2]
[371673888,1752382243605,-460.0,0.00018742,2]
[371673890,1752382243614,-460.0,0.00018742,2]
[371673892,1752382243623,-460.0,0.00018742,2]
[371673894,1752382243633,-460.0,0.00018742,2]
[371673896,1752382243642,-1538.41,0.00018742,2]
[371673898,1752382243652,-460.0,0.00018742,2]
[371673900,1752382243661,-536.81045949,0.00018742,2]
[371673903,1752382243671,-565.33951189,0.00018742,2]
[371673905,1752382243680,-460.0,0.00018742,2]
[371673907,1752382243690,-559.49,0.00018743,2]
[371673909,1752382243699,-460.0,0.00018743,2]
[371673911,1752382243708,-460.0,0.00018743,2]
[371673913,1752382243718,-460.0,0.00018743,2]
[371673915,1752382243727,-460.0,0.00018743,2]
[371673917,1752382243740,-460.0,0.00018743,2]
[371673919,1752382243750,-460.0,0.00018743,2]
[371673921,1752382243760,-460.0,0.00018743,2]
[371673923,1752382243770,-460.0,0.00018743,2]
[371673925,1752382243780,-460.0,0.00018743,2]
[371673927,1752382243790,-263.7357182,0.00018743,2]
[371673929,1752382243800,-460.0,0.00018743,2]
[371673931,1752382243809,-460.0,0.00018743,2]
[371673933,1752382243819,-351.77446615,0.00018743,2]
[371673935,1752382243828,-460.0,0.00018743,2]
[371673937,1752382243837,-460.0,0.00018743,2]
[371673939,1752382243847,-460.0,0.00018743,2]
[371673941,1752382243856,-464.75998881,0.00018743,2]
[371673943,1752382243865,-463.30568519,0.00018743,2]
[371673945,1752382243874,-460.0,0.00018743,2]
[371673947,1752382243884,-466.06935017,0.00018743,2]
[371673949,1752382243893,-460.0,0.00018743,2]
[371673951,1752382243903,-460.0,0.00018743,2]
[371673953,1752382243912,-1511.73,0.00018743,2]
[371673955,1752382243921,-460.0,0.00018743,2]
[371673957,1752382243931,-554.12804544,0.00018743,2]
[371673959,1752382243940,-423.67118016,0.00018743,2]
[371673961,1752382243950,-460.0,0.00018743,2]
[371673963,1752382243959,-460.0,0.00018743,2]
[371673965,1752382243968,-473.8056111,0.00018743,2]
[371673967,1752382243978,-460.0,0.00018743,2]
[371673969,1752382243987,-466.0079108,0.00018743,2]
[371673971,1752382243997,-460.0,0.00018744,2]
[371673973,1752382244007,-460.0,0.00018744,2]
[371673975,1752382244016,-460.0,0.00018744,2]
[371673977,1752382244026,-463.79585913,0.00018744,2]
[371673979,1752382244036,-500.0,0.00018744,2]
[371673981,1752382244045,-451.24575484,0.00018744,2]
[371673983,1752382244055,-770.536149,0.00018791,2]
[371673985,1752382244065,-500.0,0.00018797,2]
[371673987,1752382244074,-11500.60713872,0.000189,2]
[371673989,1752382244084,-6496.85512977,0.00018915,2]
[371676149,1752382265766,500.0,0.00022986,30]
[371679201,1752382660463,359.595759,0.00013699,2]
[371679244,1752383432536,-701.35014305,0.00017,2]
[371679252,1752383432594,-2023.64985695,0.00017,2]
[371679254,1752383432604,-300.0,0.00017281,2]
[371679256,1752383432613,-460.0,0.00017282,2]
[371679258,1752383432623,-718.89,0.00017282,2]
[371679260,1752383432633,-121.55571249,0.00017282,2]
[371679360,1752383438794,-401.42757738,0.00017282,2]
[371679363,1752383438806,-291.300155,0.00017282,2]
[371679365,1752383438818,-966.28655513,0.00017282,2]
[371679367,1752383438828,-460.0,0.00017282,2]
[371679369,1752383438837,-492.97719897,0.00017282,2]
[371679371,1752383438848,-147.74280103,0.00017282,2]
[371679373,1752383438858,-460.0,0.00017282,2]
[371679375,1752383438867,-751.73284731,0.00017283,2]
[371679379,1752383438889,-24138.26715269,0.00017283,2]
[371679381,1752383438899,-460.0,0.00017556,2]
[371679383,1752383438908,-718.89,0.00017556,2]
[371679385,1752383438918,-1780.57,0.00017556,2]
[371679387,1752383438928,-460.0,0.00017556,2]
[371679389,1752383438937,-640.72,0.00017556,2]
[371679391,1752383438946,-22.81970204,0.00017556,2]
[371679393,1752383438958,-437.18029796,0.00017556,2]
[371679395,1752383438967,-460.0,0.0001783,2]
[371679397,1752383438977,-718.89,0.0001783,2]
[371679399,1752383438986,-1780.57,0.0001783,2]
[371679401,1752383438995,-460.0,0.0001783,2]
[371679403,1752383439004,-567.59949986,0.0001783,2]
[371679405,1752383439015,-73.12050014,0.0001783,2]
[371679407,1752383439024,-291.39952239,0.0001783,2]
[371679410,1752383439037,-168.60047761,0.0001783,2]
[371679412,1752383439046,-385.02096041,0.00018092,2]
[371679414,1752383439056,-460.0,0.00018104,2]
[371679416,1752383439065,-718.89,0.00018104,2]
[371679418,1752383439075,-505.53047096,0.00018104,2]
[371679420,1752383439086,-1275.03952904,0.00018104,2]
[371679422,1752383439095,-18.42921238,0.00018104,2]
[371679424,1752383439107,-441.57078762,0.00018104,2]
[371679426,1752383439116,-3.42872144,0.00018104,2]
[371679429,1752383439127,-637.29127856,0.00018104,2]
[371679431,1752383439136,-22.26929532,0.00018104,2]
[371679433,1752383439148,-437.73070468,0.00018104,2]
[371679435,1752383439157,-460.0,0.00018192,2]
[371679437,1752383439166,-135.85462903,0.00018192,2]
[371679439,1752383439178,-324.14537097,0.00018192,2]
[371679441,1752383439187,-500.0,0.00018192,2]
[371679443,1752383439197,-176.85461493,0.00018192,2]
[371679594,1752383440613,-283.14538507,0.00018192,2]
[371679596,1752383440623,-460.0,0.00018192,2]
[371679598,1752383440633,-460.0,0.00018192,2]
[371679600,1752383440643,-460.0,0.00018192,2]
[371679602,1752383440652,-460.0,0.00018192,2]
[371679604,1752383440662,-464.58839822,0.00018192,2]
[371679607,1752383440671,-460.0,0.00018192,2]
[371679609,1752383440680,-460.0,0.00018192,2]
[371679611,1752383440690,-460.0,0.00018192,2]
[371679613,1752383440700,-460.0,0.00018192,2]
[371679615,1752383440709,-460.0,0.00018192,2]
[371679617,1752383440718,-460.0,0.00018192,2]
[371679619,1752383440728,-460.0,0.00018192,2]
[371679621,1752383440737,-460.0,0.00018192,2]
[371679623,1752383440746,-460.0,0.00018192,2]
[371679625,1752383440755,-460.0,0.00018192,2]
[371679627,1752383440765,-653.47,0.00018192,2]
[371679629,1752383440775,-460.0,0.00018192,2]
[371679631,1752383440787,-460.0,0.00018192,2]
[371679633,1752383440796,-665.3,0.00018192,2]
[371679635,1752383440806,-460.0,0.00018192,2]
[371679637,1752383440815,-460.0,0.00018192,2]
[371679639,1752383440824,-476.27948072,0.00018192,2]
[371679641,1752383440834,-500.0,0.00018192,2]
[371679643,1752383440843,-514.18,0.00018192,2]
[371679645,1752383440854,-460.0,0.00018192,2]
[371679647,1752383440863,-460.0,0.00018192,2]
[371679649,1752383440872,-197.03099886,0.00018192,2]
[371679651,1752383440881,-460.0,0.00018192,2]
[371679653,1752383440891,-460.0,0.00018192,2]
[371679655,1752383440901,-460.0,0.00018192,2]
[371679657,1752383440910,-460.0,0.00018192,2]
[371679659,1752383440919,-1346.1,0.00018192,2]
[371679661,1752383440928,-460.0,0.00018192,2]
[371679663,1752383440938,-460.0,0.00018192,2]
[371679665,1752383440947,-460.0,0.00018192,2]
[371679667,1752383440956,-460.0,0.00018192,2]
[371679669,1752383440966,-460.0,0.00018192,2]
[371679671,1752383440975,-469.91617521,0.00018192,2]
[371679673,1752383440984,-460.0,0.00018192,2]
[371679675,1752383440993,-460.0,0.00018192,2]
[371679677,1752383441002,-460.0,0.00018192,2]
[371679679,1752383441011,-461.41627627,0.00018192,2]
[371679680,1752383441020,-998.59,0.00018192,2]
[371679683,1752383441031,-460.0,0.00018192,2]
[371679685,1752383441042,-460.0,0.00018192,2]
[371679687,1752383441051,-460.0,0.00018192,2]
[371679689,1752383441060,-471.79073901,0.00018192,2]
[371679690,1752383441069,-460.0,0.00018193,2]
[371679692,1752383441080,-460.0,0.00018193,2]
[371679694,1752383441090,-500.0,0.00018193,2]
[371679696,1752383441099,-445.68351494,0.00018193,2]
[371679698,1752383441108,-460.0,0.00018193,2]
[371679701,1752383441118,-1322.76,0.00018193,2]
[371679702,1752383441128,-460.0,0.00018193,2]
[371679704,1752383441138,-460.0,0.00018193,2]
[371679706,1752383441148,-582.30568966,0.00018193,2]
[371679709,1752383441158,-462.21886692,0.00018193,2]
[371679711,1752383441167,-460.0,0.00018193,2]
[371679713,1752383441177,-460.0,0.00018193,2]
[371679715,1752383441186,-523.39517473,0.00018193,2]
[371679717,1752383441195,-460.0,0.00018194,2]
[371679719,1752383441204,-463.21410389,0.00018194,2]
[371679721,1752383441214,-461.93658956,0.00018194,2]
[371679723,1752383441223,-460.0,0.00018194,2]
[371679725,1752383441232,-469.46523406,0.00018194,2]
[371679727,1752383441242,-460.0,0.00018194,2]
[371679729,1752383441251,-460.0,0.00018194,2]
[371679731,1752383441261,-460.0,0.00018194,2]
[371679733,1752383441270,-164.873322,0.00018359,2]
[371679735,1752383441280,-460.0,0.00018378,2]
[371679737,1752383441291,-718.89,0.00018378,2]
[371679739,1752383441300,-1780.57,0.00018378,2]
[371679741,1752383441310,-460.0,0.00018378,2]
[371679743,1752383441319,-640.72,0.00018378,2]
[371679745,1752383441331,-460.0,0.00018378,2]
[371679747,1752383441341,-521.6,0.00018465,2]
[371679749,1752383441350,-460.0,0.00018466,2]
[371679750,1752383441360,-475.5436958,0.00018466,2]
[371679753,1752383441371,-599.19249046,0.00018466,2]
[371679755,1752383441382,-460.0,0.00018466,2]
[371679757,1752383441392,-460.0,0.00018466,2]
[371679758,1752383441401,-460.0,0.00018466,2]
[371679761,1752383441412,-343.76058482,0.00018466,2]
[371679762,1752383441423,-460.0,0.00018466,2]
[371679764,1752383441433,-460.0,0.00018466,2]
[371679766,1752383441443,-460.0,0.00018466,2]
[371679768,1752383441453,-244.36851286,0.00018466,2]
[371679770,1752383441465,-460.0,0.00018466,2]
[371679773,1752383441475,-460.0,0.00018466,2]
[371679775,1752383441484,-460.0,0.00018466,2]
[371679776,1752383441494,-460.0,0.00018466,2]
[371679779,1752383441503,-460.0,0.00018466,2]
[371679781,1752383441514,-653.47,0.00018466,2]
[371679782,1752383441525,-460.0,0.00018466,2]
[371679785,1752383441536,-460.0,0.00018466,2]
[371679787,1752383441545,-665.3,0.00018466,2]
[371679789,1752383441555,-460.0,0.00018466,2]
[371679791,1752383441565,-514.18,0.00018466,2]
[371679793,1752383441575,-460.0,0.00018466,2]
[371679795,1752383441585,-460.0,0.00018466,2]
[371679812,1752383441733,-460.0,0.00018466,2]
[371679815,1752383441750,-460.0,0.00018466,2]
[371679817,1752383441760,-1346.1,0.00018466,2]
[371679819,1752383441769,-460.0,0.00018466,2]
[371679821,1752383441778,-460.0,0.00018466,2]
[371679823,1752383441789,-460.0,0.00018466,2]
[371679825,1752383441798,-460.0,0.00018466,2]
[371679827,1752383441807,-460.0,0.00018466,2]
[371679829,1752383441816,-460.0,0.00018466,2]
[371679831,1752383441826,-998.59,0.00018466,2]
[371679833,1752383441835,-460.0,0.00018466,2]
[371679835,1752383441844,-460.0,0.00018466,2]
[371679837,1752383441854,-463.05888377,0.00018467,2]
[371679839,1752383441863,-460.0,0.00018467,2]
[371679841,1752383441872,-500.0,0.00018467,2]
[371679843,1752383441881,-460.0,0.00018467,2]
[371679845,1752383441892,-1322.76,0.00018467,2]
[371679847,1752383441902,-460.0,0.00018467,2]
[371679849,1752383441911,-460.0,0.00018467,2]
[371679851,1752383441920,-460.0,0.00018468,2]
[371679853,1752383441930,-460.0,0.00018468,2]
[371679855,1752383441939,-164.873322,0.00018568,2]
[371679857,1752383441948,-460.0,0.00018652,2]
[371679859,1752383441957,-718.89,0.00018652,2]
[371679861,1752383441966,-1780.57,0.00018652,2]
[371679863,1752383441976,-460.0,0.00018652,2]
[371679865,1752383441985,-640.72,0.00018652,2]
[371679867,1752383441995,-460.0,0.00018652,2]
[371679869,1752383442004,-460.0,0.0001874,2]
[371679871,1752383442015,-256.64130121,0.0001874,2]
[371679873,1752383442024,-502.11960867,0.0001874,2]
[371679875,1752383442033,-460.0,0.0001874,2]
[371679877,1752383442043,-460.0,0.0001874,2]
[371679879,1752383442052,-460.0,0.0001874,2]
[371679881,1752383442061,-460.0,0.0001874,2]
[371679883,1752383442071,-460.0,0.0001874,2]
[371679885,1752383442080,-460.0,0.0001874,2]
[371679887,1752383442089,-571.09933751,0.0001874,2]
[371679889,1752383442099,-460.0,0.0001874,2]
[371679891,1752383442109,-460.0,0.0001874,2]
[371679893,1752383442118,-653.47,0.0001874,2]
[371679895,1752383442127,-460.0,0.0001874,2]
[371679897,1752383442137,-460.0,0.0001874,2]
[371679899,1752383442147,-665.3,0.0001874,2]
[371679901,1752383442164,-514.18,0.0001874,2]
[371679903,1752383442175,-460.0,0.0001874,2]
[371679905,1752383442185,-460.0,0.0001874,2]
[371679907,1752383442195,-460.0,0.0001874,2]
[371679909,1752383442204,-460.0,0.0001874,2]
[371679911,1752383442214,-1346.1,0.0001874,2]
[371679913,1752383442224,-460.0,0.0001874,2]
[371679915,1752383442234,-460.0,0.0001874,2]
[371679917,1752383442243,-460.0,0.0001874,2]
[371679919,1752383442253,-460.0,0.0001874,2]
[371679921,1752383442262,-460.0,0.0001874,2]
[371679923,1752383442272,-998.59,0.0001874,2]
[371679924,1752383442281,-460.0,0.0001874,2]
[371679925,1752383442292,-460.0,0.0001874,2]
[371679926,1752383442302,-500.0,0.00018741,2]
[371679927,1752383442312,-460.0,0.00018741,2]
[371679928,1752383442323,-1322.76,0.00018741,2]
[371679929,1752383442337,-247.93730311,0.00018741,2]
[371679931,1752383442469,-212.06269689,0.00018741,2]
[371679933,1752383442479,-460.0,0.00018741,2]
[371679935,1752383442488,-589.59746436,0.00018742,2]
[371679937,1752383442498,-776.35948408,0.00018767,2]
[371679939,1752383442507,-164.873322,0.00018777,2]
[371679941,1752383442516,-500.0,0.000188,2]
[371679943,1752383442526,-420.0,0.00018869,2]
[371679945,1752383442537,-201.13,0.0001889,3]
[371679947,1752383442547,-603.44,0.0001889,3]
[371679949,1752383442556,-14336.51970415,0.000189,2]
[371679951,1752383442566,-6709.9414478,0.00018914,2]
[371679953,1752383442575,-517.55210838,0.00018915,2]
[371679955,1752383442585,-241.35,0.00018916,3]
[371679957,1752383442595,-460.0,0.00018926,2]
[371679959,1752383442604,-718.89,0.00018926,2]
[371679961,1752383442613,-1780.57,0.00018926,2]
[371679963,1752383442623,-460.0,0.00018926,2]
[371679965,1752383442632,-640.72,0.00018926,2]
[371679967,1752383442641,-460.0,0.00018926,2]
[371679969,1752383442650,-164.91790866,0.00018933,2]
[371679971,1752383442661,-164.873322,0.00018985,2]
[371679972,1752383442670,-50760.68802587,0.00019013,2]
[371680404,1752383446619,-555.91394229,0.00017282,2]
[371680406,1752383446629,-460.0,0.00017282,2]
[371680408,1752383446638,-460.0,0.00017556,2]
[371680410,1752383446648,-460.0,0.0001783,2]
[371680412,1752383446657,-460.0,0.00018104,2]
[371680414,1752383446667,-566.60755333,0.00018378,2]
[371680416,1752383446676,-403.34,0.00019003,3]
[371680418,1752383446685,-9845.23267686,0.00019013,2]
[371680420,1752383446697,-648.96,0.00019013,2]
[371680551,1752383466675,500.0,0.00022986,30]
[371680553,1752383714911,366.290912,0.00013699,2]
[371680558,1752384204669,5000.0,0.0001631,2]
[371680559,1752384220608,3906.00786294,0.0001631,2]
[371680572,1752384459937,170.0,0.00023,30]
[371680632,1752384632764,-4984.62899377,0.00016563,2]
[371680634,1752384632775,-300.0,0.00016608,2]
[371680636,1752384632786,-460.0,0.00016609,2]
[371680638,1752384632796,-460.0,0.00016609,2]
[371680639,1752384632808,-460.0,0.00016609,2]
[371680640,1752384632817,-460.0,0.00016609,2]
[371680642,1752384632828,-460.0,0.00016609,2]
[371680644,1752384632837,-460.0,0.00016609,2]
[371680646,1752384632847,-460.0,0.00016609,2]
[371680648,1752384632857,-460.0,0.00016609,2]
[371680650,1752384632884,-460.0,0.00016609,2]
[371680651,1752384632894,-460.0,0.00016609,2]
[371680653,1752384632904,-460.0,0.00016609,2]
[371680655,1752384632913,-460.0,0.00016609,2]
[371680657,1752384632922,-460.0,0.00016609,2]
[371680659,1752384632932,-460.0,0.00016609,2]
[371680661,1752384632942,-543.13,0.00016609,2]
[371680663,1752384632952,-460.0,0.00016609,2]
[371680665,1752384632961,-486.57,0.00016609,2]
[371680667,1752384632971,-1261.24,0.00016609,2]
[371680668,1752384632980,-460.0,0.00016609,2]
[371680669,1752384632989,-460.0,0.00016609,2]
[371680670,1752384632998,-557.53,0.00016609,2]
[371680671,1752384633008,-460.0,0.00016609,2]
[371680672,1752384633017,-460.0,0.00016609,2]
[371680673,1752384633027,-460.0,0.00016609,2]
[371680674,1752384633036,-460.0,0.00016609,2]
[371680675,1752384633046,-460.0,0.00016609,2]
[371680676,1752384633056,-460.0,0.00016609,2]
[371680677,1752384633066,-460.0,0.00016609,2]
[371680678,1752384633076,-23375.7699566,0.0001661,2]
[371680679,1752384633085,-460.0,0.00016883,2]
[371680680,1752384633095,-160.73,0.00016883,2]
[371680681,1752384633104,-542.76689706,0.00016883,2]
[371680682,1752384633114,-460.0,0.00016883,2]
[371680683,1752384633123,-460.0,0.00016883,2]
[371680684,1752384633133,-498.55,0.00016883,2]
[371680685,1752384633143,-1261.24,0.00016883,2]
[371680686,1752384633152,-460.0,0.00016883,2]
[371680687,1752384633162,-557.53,0.00016883,2]
[371680688,1752384633171,-251.93105894,0.00016883,2]
[371680689,1752384633181,-460.0,0.00016883,2]
[371680690,1752384633190,-460.0,0.00017157,2]
[371680691,1752384633200,-460.0,0.00017157,2]
[371680692,1752384633209,-460.0,0.00017157,2]
[371680693,1752384633219,-1261.24,0.00017157,2]
[371680694,1752384633228,-460.0,0.00017157,2]
[371680695,1752384633237,-557.53,0.00017157,2]
[371680696,1752384633247,-460.0,0.00017157,2]
[371680697,1752384633257,-460.0,0.00017281,2]
[371680698,1752384633266,-460.0,0.00017281,2]
[371680699,1752384633276,-469.6189657,0.00017281,2]
[371680700,1752384633285,-463.97252148,0.00017281,2]
[371680701,1752384633295,-460.0,0.00017281,2]
[371680702,1752384633304,-460.0,0.00017281,2]
[371680703,1752384633314,-460.0,0.00017281,2]
[371680704,1752384633323,-460.0,0.00017281,2]
[371680705,1752384633333,-460.0,0.00017281,2]
[371680706,1752384633342,-460.0,0.00017281,2]
[371680707,1752384633352,-460.0,0.00017281,2]
[371680708,1752384633362,-460.0,0.00017281,2]
[371680709,1752384633371,-464.47621546,0.00017281,2]
[371680710,1752384633380,-413.07345324,0.00017281,2]
[371680753,1752384638871,-460.0,0.00016609,2]
[371680754,1752384638880,-460.0,0.00016609,2]
[371680756,1752384638890,-460.0,0.00016883,2]
[371680757,1752384638899,-532.08,0.00016883,2]
[371680759,1752384638908,-46.92654676,0.00017281,2]
[371680761,1752384638917,-460.0,0.00017281,2]
[371680763,1752384638927,-500.0,0.00017281,2]
[371680765,1752384638936,-460.0,0.00017281,2]
[371680767,1752384638946,-449.26862842,0.00017281,2]
[371680769,1752384638956,-460.0,0.00017281,2]
[371680771,1752384638966,-1052.65,0.00017281,2]
[371680773,1752384638976,-460.0,0.00017281,2]
[371680775,1752384638985,-460.0,0.00017281,2]
[371680778,1752384638995,-589.54193691,0.00017281,2]
[371680779,1752384639005,-460.0,0.00017281,2]
[371680782,1752384639014,-460.0,0.00017281,2]
[371680783,1752384639023,-460.0,0.00017281,2]
[371680785,1752384639033,-460.0,0.00017281,2]
[371680788,1752384639042,-460.0,0.00017281,2]
[371680789,1752384639052,-571.79,0.00017281,2]
[371680792,1752384639061,-687.87,0.00017281,2]
[371680794,1752384639072,-585.69,0.00017281,2]
[371680796,1752384639081,-460.0,0.00017281,2]
[371680798,1752384639091,-460.0,0.00017281,2]
[371680800,1752384639100,-460.0,0.00017281,2]
[371680803,1752384639110,-460.0,0.00017281,2]
[371680805,1752384639119,-460.0,0.00017281,2]
[371680807,1752384639127,-466.0297376,0.00017281,2]
[371680809,1752384639137,-460.0,0.00017281,2]
[371680811,1752384639146,-460.0,0.00017281,2]
[371680813,1752384639155,-460.0,0.00017281,2]
[371680815,1752384639164,-460.0,0.00017281,2]
[371680817,1752384639174,-522.1619707,0.00017281,2]
[371680819,1752384639183,-500.0,0.00017281,2]
[371680821,1752384639193,-460.0,0.00017281,2]
[371680823,1752384639202,-460.0,0.00017281,2]
[371680824,1752384639213,-460.0,0.00017281,2]
[371680826,1752384639223,-460.0,0.00017281,2]
[371680828,1752384639232,-460.0,0.00017281,2]
[371680831,1752384639242,-1177.84,0.00017281,2]
[371680832,1752384639254,-460.0,0.00017281,2]
[371680834,1752384639263,-460.0,0.00017281,2]
[371680837,1752384639273,-460.0,0.00017281,2]
[371680839,1752384639283,-463.18192409,0.00017281,2]
[371680840,1752384639292,-460.0,0.00017281,2]
[371680842,1752384639302,-460.0,0.00017281,2]
[371680844,1752384639312,-488.38,0.00017281,2]
[371680846,1752384639324,-460.0,0.00017281,2]
[371680848,1752384639334,-460.0,0.00017281,2]
[371680850,1752384639343,-460.0,0.00017281,2]
[371680852,1752384639352,-151.46172895,0.00017281,2]
[371680854,1752384639361,-460.0,0.00017281,2]
[371680856,1752384639370,-36.08235232,0.00017281,2]
[371680859,1752384639383,-423.91764768,0.00017281,2]
[371680861,1752384639392,-460.0,0.00017282,2]
[371680863,1752384639401,-460.0,0.00017282,2]
[371680865,1752384639410,-476.51512813,0.00017282,2]
[371680867,1752384639419,-194.18575664,0.00017282,2]
[371680869,1752384639431,-265.81424336,0.00017282,2]
[371680871,1752384639440,-0.98575664,0.00017282,2]
[371680873,1752384639452,-459.01424336,0.00017282,2]
[371680875,1752384639461,-460.0,0.00017282,2]
[371680877,1752384639470,-90.12561993,0.00017282,2]
[371680879,1752384639481,-369.87438007,0.00017282,2]
[371680881,1752384639491,-460.0,0.00017282,2]
[371680883,1752384639500,-462.8780156,0.00017282,2]
[371680885,1752384639509,-460.0,0.00017431,2]
[371680887,1752384639518,-322.53,0.00017431,2]
[371680889,1752384639529,-245.67356994,0.00017431,2]
[371680892,1752384639540,-214.32643006,0.00017431,2]
[371680894,1752384639549,-380.65761888,0.00017431,2]